fUSD/lending_fUSD_20240802
["ID","MTS","AMOUNT","RATE_DAILY","PERIOD"]
[333881214,1722593443894,-500.0,0.00019725,2]
[333881215,1722593443904,-5877.95,0.00019725,2]
[333881216,1722593443913,-3836.25,0.00019725,2]
[333881217,1722593443923,-602.62,0.00019725,2]
[333881218,1722593443932,-500.0,0.00019725,2]
[333881219,1722593443942,-500.0,0.00019725,2]
[333881220,1722593443952,-593.91,0.00019725,2]
[333881221,1722593443961,-8007.38,0.00019725,2]
[333881222,1722593443971,-500.0,0.00019725,2]
[333881223,1722593443980,-726.94,0.00019725,2]
[333881224,1722593443990,-1369.63,0.00019725,2]
[333881225,1722593443999,-822.67,0.00019725,2]
[333881226,1722593444008,-500.0,0.00019725,2]
[333881227,1722593444017,-500.0,0.00019725,2]
[333881228,1722593444027,-500.0,0.00019725,2]
[333881229,1722593444036,-547.56,0.00019725,2]
[333881230,1722593444046,-917.0,0.00019725,2]
[333881231,1722593444055,-602.71281595,0.00019725,2]
[333881232,1722593444065,-1266.77,0.00019725,2]
[333881233,1722593444075,-2824.84,0.00019725,2]
[333881234,1722593444084,-500.0,0.00019725,2]
[333881235,1722593444094,-2302.41,0.00019725,2]
[333881236,1722593444103,-2339.88,0.00019725,2]
[333881237,1722593444112,-512.56,0.00019725,2]
[333881238,1722593444122,-983.86,0.00019725,2]
[333881239,1722593444131,-12686.64,0.00019725,2]
[333881240,1722593444141,-500.0,0.00019725,2]
[333881241,1722593444151,-500.0,0.00019725,2]
[333881242,1722593444160,-500.0,0.00019725,2]
[333881243,1722593444170,-1672.22,0.00019725,2]
[333881244,1722593444179,-500.0,0.00019725,2]
[333881245,1722593444189,-500.0,0.00019725,2]
[333881246,1722593444198,-500.0,0.00019725,2]
[333881247,1722593444208,-1817.33,0.00019725,2]
[333881248,1722593444218,-3865.31,0.00019725,2]
[333881249,1722593444228,-500.0,0.00019725,2]
[333881250,1722593444238,-6342.72,0.00019725,2]
[333881251,1722593444250,-3309.37,0.00019725,2]
[333881252,1722593444260,-500.0,0.00019725,2]
[333881253,1722593444269,-500.0,0.00019725,2]
[333881254,1722593444279,-500.0,0.00019725,2]
[333881255,1722593444289,-361.61302012,0.00019725,2]
[333881256,1722593444298,-500.0,0.00019725,2]
[333881257,1722593444308,-512.49,0.00019725,2]
[333881258,1722593444318,-715.82,0.00019725,2]
[333881259,1722593444328,-1169.22,0.00019725,2]
[333881260,1722593444337,-1239.58,0.00019725,2]
[333881261,1722593444347,-500.0,0.00019725,2]
[333881262,1722593444357,-1587.64,0.00019725,2]
[333881263,1722593444366,-500.0,0.00019725,2]
[333881264,1722593444376,-7401.98,0.00019725,2]
[333881265,1722593444386,-500.0,0.00019725,2]
[333881266,1722593444395,-500.0,0.00019725,2]
[333881267,1722593444405,-1317.98,0.00019725,2]
[333881268,1722593444415,-982.09,0.00019725,2]
[333881269,1722593444424,-2881.03,0.00019725,2]
[333881270,1722593444434,-2556.52,0.00019725,2]
[333881271,1722593444443,-291.78772827,0.00019725,2]
[333881272,1722593444453,-500.0,0.00019725,2]
[333881273,1722593444463,-711.8,0.00019725,2]
[333881274,1722593444472,-500.0,0.00019725,2]
[333881275,1722593444482,-500.0,0.00019725,2]
[333881276,1722593444491,-4696.64,0.00019725,2]
[333881277,1722593444501,-1527.07,0.00019725,2]
[333881278,1722593444510,-28129.6,0.00019725,2]
[333881279,1722593444520,-1620.63,0.00019725,2]
[333881280,1722593444529,-4254.33,0.00019725,2]
[333881281,1722593444539,-763.8,0.00019725,2]
[333881282,1722593444548,-500.0,0.00019725,2]
[333881283,1722593444557,-500.0,0.00019725,2]
[333881284,1722593444567,-500.0,0.00019725,2]
[333881285,1722593444577,-2320.88,0.00019725,2]
[333881286,1722593444586,-4696.75,0.00019725,2]
[333881287,1722593444596,-4733.38,0.00019725,2]
[333881288,1722593444606,-8464.98,0.00019725,2]
[333881289,1722593444615,-517.21,0.00019725,2]
[333881290,1722593444624,-500.0,0.00019725,2]
[333881291,1722593444634,-620.24,0.00019725,2]
[333881292,1722593444643,-3046.12,0.00019725,2]
[333881293,1722593444652,-500.0,0.00019725,2]
[333881294,1722593444662,-500.0,0.00019725,2]
[333881295,1722593444671,-772.81,0.00019725,2]
[333881296,1722593444681,-1066.07,0.00019725,2]
[333881297,1722593444690,-500.0,0.00019725,2]
[333881298,1722593444699,-28842.78,0.00019725,2]
[333881299,1722593444709,-13371.99,0.00019725,2]
[333881300,1722593444718,-697.15,0.00019725,2]
[333881301,1722593444727,-500.0,0.00019725,2]
[333881302,1722593444737,-500.0,0.00019725,2]
[333881303,1722593444746,-1130.79,0.00019725,2]
[333881304,1722593444757,-754.97,0.00019725,2]
[333881305,1722593444766,-500.0,0.00019725,2]
[333881306,1722593444775,-709.99,0.00019725,2]
[333881307,1722593444784,-1587.98,0.00019725,2]
[333881308,1722593444794,-7203.13,0.00019725,2]
[333881309,1722593444803,-500.0,0.00019725,2]
[333881310,1722593444813,-283.20894026,0.00019725,2]
[333881311,1722593444867,-1710.22224133,0.00019725,2]
[333881312,1722593445145,-320.26401847,0.00019725,2]
[333881313,1722593445173,-337.87479994,0.00019725,2]
[333881314,1722593445183,-500.0,0.00019725,2]
[333881315,1722593445192,-1126.08143657,0.00019725,2]
[333881316,1722593445210,-255.44856343,0.00019725,2]
[333881317,1722593445220,-500.0,0.00019725,2]
[333881318,1722593445230,-46.61483816,0.00019725,2]
[333881319,1722593445245,-1079.14516184,0.00019725,2]
[333881320,1722593445255,-65.21859484,0.00019725,2]
[333881321,1722593445267,-2913.83140516,0.00019725,2]
[333881322,1722593445277,-6643.26,0.00019725,2]
[333881323,1722593445287,-2629.21,0.00019725,2]
[333881324,1722593445297,-500.0,0.00019725,2]
[333881325,1722593445307,-1455.2,0.00019725,2]
[333881326,1722593445320,-500.0,0.00019725,2]
[333881327,1722593445330,-500.0,0.00019725,2]
[333881328,1722593445340,-5828.83,0.00019725,2]
[333881329,1722593445350,-5251.45,0.00019725,2]
[333881330,1722593445360,-1194.83,0.00019725,2]
[333881331,1722593445370,-1321.37,0.00019725,2]
[333881332,1722593445380,-500.0,0.00019725,2]
[333881333,1722593445390,-14426.36,0.00019725,2]
[333881334,1722593445399,-2963.71,0.00019725,2]
[333881335,1722593445410,-795.03,0.00019725,2]
[333881336,1722593445419,-500.0,0.00019725,2]
[333881337,1722593445429,-592.47,0.00019725,2]
[333881338,1722593445438,-500.0,0.00019725,2]
[333881339,1722593445448,-2680.87,0.00019725,2]
[333881340,1722593445457,-500.0,0.00019725,2]
[333881341,1722593445467,-2997.34,0.00019725,2]
[333881342,1722593445476,-500.0,0.00019725,2]
[333881343,1722593445486,-500.0,0.00019725,2]
[333881344,1722593445496,-11372.94,0.00019725,2]
[333881345,1722593445505,-500.0,0.00019725,2]
[333881346,1722593445515,-500.0,0.00019725,2]
[333881347,1722593445525,-4818.5,0.00019725,2]
[333881348,1722593445534,-500.0,0.00019725,2]
[333881349,1722593445544,-500.0,0.00019725,2]
[333881350,1722593445554,-500.0,0.00019725,2]
[333881351,1722593445563,-500.0,0.00019725,2]
[333881352,1722593445573,-892.55,0.00019725,2]
[333881353,1722593445583,-3855.89,0.00019725,2]
[333881354,1722593445593,-500.0,0.00019725,2]
[333881355,1722593445603,-955.26,0.00019725,2]
[333881356,1722593445613,-500.0,0.00019725,2]
[333881357,1722593445641,-4210.78,0.00019725,2]
[333881358,1722593445651,-814.77,0.00019725,2]
[333881359,1722593445661,-500.0,0.00019725,2]
[333881360,1722593445671,-1041.53,0.00019725,2]
[333881361,1722593445682,-2833.95,0.00019725,2]
[333881362,1722593445692,-507.82326483,0.00019725,2]
[333881363,1722593445702,-500.0,0.00019725,2]
[333881364,1722593445712,-500.0,0.00019725,2]
[333881365,1722593445721,-1731.54,0.00019725,2]
[333881366,1722593445732,-500.0,0.00019725,2]
[333881367,1722593445741,-500.0,0.00019725,2]
[333881368,1722593445751,-500.0,0.00019725,2]
[333881369,1722593445762,-500.0,0.00019725,2]
[333881370,1722593445772,-500.0,0.00019725,2]
[333881371,1722593445782,-4092.43,0.00019725,2]
[333881372,1722593445792,-3515.0,0.00019725,2]
[333881373,1722593445801,-1100.38,0.00019725,2]
[333881374,1722593445811,-500.0,0.00019725,2]
[333881375,1722593445820,-1635.11,0.00019725,2]
[333881376,1722593445830,-8083.04,0.00019725,2]
[333881377,1722593445840,-500.0,0.00019725,2]
[333881378,1722593445849,-500.0,0.00019725,2]
[333881379,1722593445858,-2173.44,0.00019725,2]
[333881380,1722593445869,-2439.81,0.00019725,2]
[333881381,1722593445879,-500.0,0.00019725,2]
[333881382,1722593445889,-4365.35,0.00019725,2]
[333881383,1722593445898,-500.0,0.00019725,2]
[333881384,1722593445908,-500.0,0.00019725,2]
[333881385,1722593445917,-3884.43,0.00019725,2]
[333881386,1722593445927,-500.0,0.00019725,2]
[333881387,1722593445936,-500.0,0.00019725,2]
[333881388,1722593445946,-500.0,0.00019725,2]
[333881389,1722593445956,-501.28,0.00019725,2]
[333881390,1722593445965,-712.9,0.00019725,2]
[333881391,1722593445975,-1636.58,0.00019725,2]
[333881392,1722593445984,-906.83,0.00019725,2]
[333881393,1722593445994,-500.0,0.00019725,2]
[333881394,1722593446003,-500.0,0.00019725,2]
[333881395,1722593446013,-691.43,0.00019725,2]
[333881396,1722593446022,-500.0,0.00019725,2]
[333881397,1722593446032,-14434.86,0.00019725,2]
[333881398,1722593446041,-3920.24,0.00019725,2]
[333881399,1722593446050,-716.35,0.00019725,2]
[333881400,1722593446060,-500.0,0.00019725,2]
[333881402,1722593446070,-1048.31,0.00019725,2]
[333881403,1722593446080,-825.09,0.00019725,2]
[333881406,1722593446090,-1214.1,0.00019725,2]
[333881407,1722593446099,-500.0,0.00019725,2]
[333881409,1722593446108,-500.0,0.00019725,2]
[333881411,1722593446117,-500.0,0.00019725,2]
[333881412,1722593446144,-1560.43,0.00019725,2]
[333881413,1722593446154,-1247.25,0.00019725,2]
[333881414,1722593446163,-544.2,0.00019725,2]
[333881415,1722593446173,-11142.08,0.00019725,2]
[333881416,1722593446183,-501.14,0.00019725,2]
[333881417,1722593446193,-500.0,0.00019725,2]
[333881418,1722593446203,-500.0,0.00019725,2]
[333881419,1722593446213,-4864.2,0.00019725,2]
[333881420,1722593446222,-2824.43,0.00019725,2]
[333881421,1722593446234,-500.0,0.00019725,2]
[333881422,1722593446248,-5628.92,0.00019725,2]
[333881423,1722593446258,-1849.31,0.00019725,2]
[333881424,1722593446267,-2638.3,0.00019725,2]
[333881425,1722593446277,-500.0,0.00019725,2]
[333881426,1722593446287,-10089.26,0.00019725,2]
[333881427,1722593446296,-1424.64,0.00019725,2]
[333881428,1722593446306,-522.92940932,0.00019725,2]
[333881430,1722593446318,-1631.1,0.00019725,2]
[333881431,1722593446328,-1162.87,0.00019725,2]
[333881432,1722593446337,-500.0,0.00019725,2]
[333881433,1722593446348,-3679.38,0.00019725,2]
[333881434,1722593446358,-500.0,0.00019725,2]
[333881435,1722593446368,-569.53,0.00019725,2]
[333881436,1722593446379,-7870.94,0.00019725,2]
[333881437,1722593446389,-500.0,0.00019725,2]
[333881438,1722593446399,-31856.3,0.00019725,2]
[333881439,1722593446409,-2265.18,0.00019725,2]
[333881440,1722593446419,-639.58,0.00019725,2]
[333881441,1722593446429,-500.0,0.00019725,2]
[333881442,1722593446439,-500.0,0.00019725,2]
[333881443,1722593446449,-3924.13,0.00019725,2]
[333881444,1722593446459,-3623.7,0.00019725,2]
[333881445,1722593446469,-500.0,0.00019725,2]
[333881446,1722593446479,-500.0,0.00019725,2]
[333881447,1722593446489,-500.0,0.00019725,2]
[333881448,1722593446499,-500.0,0.00019725,2]
[333881449,1722593446509,-4859.08,0.00019725,2]
[333881450,1722593446519,-971.71,0.00019725,2]
[333881451,1722593446528,-2680.92,0.00019725,2]
[333881452,1722593446538,-735.23,0.00019725,2]
[333881453,1722593446548,-1125.98,0.00019725,2]
[333881454,1722593446558,-3633.95,0.00019725,2]
[333881455,1722593446568,-500.0,0.00019725,2]
[333881456,1722593446577,-500.0,0.00019725,2]
[333881457,1722593446587,-500.0,0.00019725,2]
[333881458,1722593446596,-500.0,0.00019725,2]
[333881459,1722593446607,-500.0,0.00019725,2]
[333881460,1722593446617,-2947.04,0.00019725,2]
[333881461,1722593446627,-3599.32,0.00019725,2]
[333881462,1722593446643,-824.71,0.00019725,2]
[333881463,1722593446652,-500.0,0.00019725,2]
[333881464,1722593446667,-500.0,0.00019725,2]
[333881465,1722593446677,-1204.07,0.00019725,2]
[333881466,1722593446686,-84405.55,0.00019725,2]
[333881467,1722593446696,-2126.76,0.00019725,2]
[333881468,1722593446706,-2392.68,0.00019725,2]
[333881469,1722593446715,-1000.0,0.00019725,2]
[333881470,1722593446725,-625.84,0.00019726,2]
[333881471,1722593446734,-500.0,0.00019726,2]
[333881472,1722593446744,-3677.09,0.00019726,2]
[333881473,1722593446755,-567.86,0.00019726,2]
[333881474,1722593446764,-546.81,0.00019726,2]
[333881475,1722593446774,-3565.97,0.00019726,2]
[333881476,1722593446784,-562.32,0.00019726,2]
[333881477,1722593446793,-500.0,0.00019726,2]
[333881478,1722593446803,-3391.09,0.00019726,2]
[333881479,1722593446812,-500.0,0.00019726,2]
[333881480,1722593446822,-500.0,0.00019726,2]
[333881481,1722593446832,-500.0,0.00019726,2]
[333881483,1722593446842,-504.52,0.00019726,2]
[333881485,1722593446852,-761.62,0.00019726,2]
[333881486,1722593446863,-508.65,0.00019726,2]
[333881487,1722593446873,-721.12,0.00019726,2]
[333881488,1722593446892,-2614.62,0.00019726,2]
[333881489,1722593446902,-3180.99,0.00019726,2]
[333881490,1722593446912,-500.0,0.00019726,2]
[333881491,1722593446921,-662.05,0.00019726,2]
[333881492,1722593446930,-716.19,0.00019726,2]
[333881493,1722593446940,-500.0,0.00019726,2]
[333881494,1722593446950,-500.0,0.00019726,2]
[333881495,1722593446959,-1423.21,0.00019726,2]
[333881496,1722593446968,-783.8,0.00019726,2]
[333881497,1722593446978,-500.0,0.00019726,2]
[333881498,1722593446988,-3305.07,0.00019726,2]
[333881499,1722593446997,-998.18,0.00019726,2]
[333881500,1722593447007,-2034.23,0.00019726,2]
[333881501,1722593447017,-500.0,0.00019726,2]
[333881502,1722593447027,-500.0,0.00019726,2]
[333881503,1722593447036,-613.04,0.00019726,2]
[333881504,1722593447045,-3492.92,0.00019726,2]
[333881505,1722593447055,-808.35,0.00019726,2]
[333881506,1722593447065,-500.0,0.00019726,2]
[333881507,1722593447074,-3047.46,0.00019726,2]
[333881508,1722593447084,-2137.57,0.00019726,2]
[333881509,1722593447093,-500.0,0.00019726,2]
[333881510,1722593447102,-1910.0,0.00019726,2]
[333881511,1722593447112,-500.0,0.00019726,2]
[333881512,1722593447123,-2251.88,0.00019726,2]
[333881513,1722593447144,-1685.95,0.00019726,2]
[333881514,1722593447153,-1321.1,0.00019726,2]
[333881515,1722593447163,-500.0,0.00019726,2]
[333881516,1722593447173,-1286.48,0.00019726,2]
[333881517,1722593447182,-500.0,0.00019726,2]
[333881518,1722593447192,-1179.69,0.00019726,2]
[333881519,1722593447201,-699.51,0.00019726,2]
[333881520,1722593447211,-3466.33,0.00019726,2]
[333881521,1722593447220,-500.0,0.00019726,2]
[333881522,1722593447230,-623.55,0.00019726,2]
[333881523,1722593447242,-1865.3,0.00019726,2]
[333881524,1722593447252,-724.88,0.00019726,2]
[333881525,1722593447262,-3009.35,0.00019726,2]
[333881526,1722593447272,-500.0,0.00019726,2]
[333881527,1722593447283,-500.0,0.00019726,2]
[333881528,1722593447293,-3294.27,0.00019726,2]
[333881529,1722593447303,-500.0,0.00019726,2]
[333881530,1722593447315,-500.0,0.00019726,2]
[333881531,1722593447326,-1297.83,0.00019726,2]
[333881532,1722593447335,-2566.72,0.00019726,2]
[333881533,1722593447345,-4961.24,0.00019726,2]
[333881534,1722593447668,-514.67,0.00019726,2]
[333881535,1722593447678,-1454.23,0.00019726,2]
[333881536,1722593447688,-500.0,0.00019726,2]
[333881537,1722593447698,-3781.62,0.00019726,2]
[333881538,1722593447708,-1159.45,0.00019726,2]
[333881539,1722593447718,-500.0,0.00019726,2]
[333881540,1722593447728,-500.0,0.00019726,2]
[333881541,1722593447737,-2037.73,0.00019726,2]
[333881542,1722593447746,-500.0,0.00019726,2]
[333881543,1722593447756,-577.43,0.00019726,2]
[333881544,1722593447765,-500.0,0.00019726,2]
[333881545,1722593447775,-500.0,0.00019726,2]
[333881546,1722593447785,-500.0,0.00019726,2]
[333881547,1722593447794,-2621.32,0.00019726,2]
[333881548,1722593447804,-983.23,0.00019726,2]
[333881549,1722593447814,-500.0,0.00019726,2]
[333881550,1722593447824,-500.0,0.00019726,2]
[333881551,1722593447834,-3894.52,0.00019726,2]
[333881552,1722593447844,-375.03920279,0.00019726,2]
[333881553,1722593447854,-500.0,0.00019726,2]
[333881554,1722593447863,-536.77,0.00019726,2]
[333881555,1722593447873,-500.0,0.00019726,2]
[333881556,1722593447890,-535.57,0.00019726,2]
[333881557,1722593447903,-2666.21,0.00019726,2]
[333881558,1722593447913,-700.11,0.00019726,2]
[333881559,1722593447923,-1355.42,0.00019726,2]
[333881560,1722593447933,-1573.24,0.00019726,2]
[333881561,1722593447942,-500.0,0.00019726,2]
[333881562,1722593447951,-500.0,0.00019726,2]
[333881563,1722593447961,-500.0,0.00019726,2]
[333881564,1722593447970,-500.0,0.00019726,2]
[333881565,1722593447980,-500.0,0.00019726,2]
[333881566,1722593447990,-692.05,0.00019726,2]
[333881567,1722593448000,-500.0,0.00019726,2]
[333881568,1722593448010,-979.32,0.00019726,2]
[333881569,1722593448019,-2880.12,0.00019726,2]
[333881570,1722593448028,-535.19955139,0.00019726,2]
[333881571,1722593448038,-500.0,0.00019726,2]
[333881572,1722593448048,-500.0,0.00019726,2]
[333881573,1722593448058,-2548.02,0.00019726,2]
[333881574,1722593448068,-500.0,0.00019726,2]
[333881575,1722593448078,-500.0,0.00019726,2]
[333881576,1722593448087,-500.0,0.00019726,2]
[333881577,1722593448097,-500.0,0.00019726,2]
[333881578,1722593448107,-817.27,0.00019726,2]
[333881579,1722593448117,-758.55,0.00019726,2]
[333881580,1722593448127,-500.0,0.00019726,2]
[333881581,1722593448146,-610.92,0.00019726,2]
[333881582,1722593448156,-500.0,0.00019726,2]
[333881583,1722593448166,-1021.4,0.00019726,2]
[333881584,1722593448176,-152.61821955,0.00019726,2]
[333881585,1722593448185,-500.0,0.00019726,2]
[333881586,1722593448195,-500.0,0.00019726,2]
[333881587,1722593448205,-549.47517042,0.00019726,2]
[333881588,1722593448215,-1411.57,0.00019726,2]
[333881589,1722593448225,-157.74654174,0.00019726,2]
[333881590,1722593448236,-1012.0,0.00019726,2]
[333881591,1722593448248,-500.0,0.00019726,2]
[333881592,1722593448258,-665.73,0.00019726,2]
[333881593,1722593448268,-500.0,0.00019726,2]
[333881594,1722593448279,-500.0,0.00019726,2]
[333881595,1722593448289,-500.0,0.00019726,2]
[333881596,1722593448300,-500.0,0.00019726,2]
[333881597,1722593448310,-628.43,0.00019726,2]
[333881598,1722593448322,-500.0,0.00019726,2]
[333881599,1722593448332,-500.0,0.00019726,2]
[333881600,1722593448342,-500.0,0.00019726,2]
[333881601,1722593448353,-500.0,0.00019726,2]
[333881602,1722593448364,-500.0,0.00019726,2]
[333881603,1722593448373,-551.29,0.00019726,2]
[333881604,1722593448388,-500.0,0.00019726,2]
[333881605,1722593448398,-500.0,0.00019726,2]
[333881606,1722593448408,-2609.28,0.00019726,2]
[333881607,1722593448419,-530.43,0.00019726,2]
[333881608,1722593448429,-500.0,0.00019726,2]
[333881609,1722593448439,-784.71,0.00019726,2]
[333881610,1722593448449,-500.0,0.00019726,2]
[333881611,1722593448458,-559.56,0.00019726,2]
[333881612,1722593448469,-500.0,0.00019726,2]
[333881613,1722593448479,-944.44,0.00019726,2]
[333881614,1722593448488,-1305.08,0.00019726,2]
[333881615,1722593448498,-500.0,0.00019726,2]
[333881616,1722593448508,-500.0,0.00019726,2]
[333881617,1722593448518,-500.0,0.00019726,2]
[333881618,1722593448528,-500.0,0.00019726,2]
[333881619,1722593448538,-500.0,0.00019726,2]
[333881620,1722593448548,-500.0,0.00019726,2]
[333881621,1722593448558,-500.0,0.00019726,2]
[333881622,1722593448567,-2330.44,0.00019726,2]
[333881623,1722593448577,-500.0,0.00019726,2]
[333881624,1722593448587,-500.0,0.00019726,2]
[333881625,1722593448596,-500.0,0.00019726,2]
[333881626,1722593448606,-500.0,0.00019726,2]
[333881627,1722593448616,-500.0,0.00019726,2]
[333881628,1722593448625,-430.25661989,0.00019726,2]
[333881629,1722593448638,-500.0,0.00019726,2]
[333881630,1722593448648,-500.0,0.00019726,2]
[333881631,1722593448658,-1099.07,0.00019726,2]
[333881632,1722593448668,-500.0,0.00019726,2]
[333881633,1722593448678,-1867.46,0.00019726,2]
[333881634,1722593448687,-304.74994191,0.00019726,2]
[333881635,1722593448697,-500.0,0.00019726,2]
[333881636,1722593448706,-757.69,0.00019726,2]
[333881637,1722593448715,-500.0,0.00019726,2]
[333881638,1722593448725,-500.0,0.00019726,2]
[333881639,1722593448734,-500.0,0.00019726,2]
[333881640,1722593448744,-500.0,0.00019726,2]
[333881641,1722593448754,-1243.41,0.00019726,2]
[333881642,1722593448763,-687.15,0.00019726,2]
[333881643,1722593448774,-500.0,0.00019726,2]
[333881644,1722593448784,-500.0,0.00019726,2]
[333881645,1722593448794,-3012.51,0.00019726,2]
[333881646,1722593448804,-500.0,0.00019726,2]
[333881647,1722593448814,-1925.63,0.00019726,2]
[333881648,1722593448824,-478.73297655,0.00019726,2]
[333881649,1722593448834,-781.58,0.00019726,2]
[333881650,1722593448844,-500.0,0.00019726,2]
[333881651,1722593448854,-1960.02,0.00019726,2]
[333881652,1722593448864,-500.0,0.00019726,2]
[333881653,1722593448874,-3118.45,0.00019726,2]
[333881654,1722593448890,-500.0,0.00019726,2]
[333881655,1722593448900,-643.33345676,0.00019726,2]
[333881656,1722593448910,-500.0,0.00019726,2]
[333881657,1722593448920,-500.0,0.00019726,2]
[333881658,1722593448930,-62.69027402,0.00019726,2]
[333881659,1722593448957,-437.30972598,0.00019726,2]
[333881660,1722593448967,-674.67,0.00019726,2]
[333881661,1722593448979,-500.0,0.00019726,2]
[333881662,1722593448989,-500.0,0.00019726,2]
[333881663,1722593448999,-500.0,0.00019726,2]
[333881664,1722593449009,-500.0,0.00019726,2]
[333881665,1722593449019,-500.0,0.00019726,2]
[333881666,1722593449029,-306.81135452,0.00019726,2]
[333881667,1722593450734,-535.42333167,0.00018999,2]
[333881668,1722593450744,-153.32346275,0.00019613,2]
[333881669,1722593450753,-193.18864548,0.00019726,2]
[333881670,1722593450763,-1000.0,0.00019726,2]
[333881671,1722593450772,-1695.91,0.00019726,2]
[333881672,1722593450781,-500.0,0.00019726,2]
[333881673,1722593450790,-500.0,0.00019726,2]
[333881674,1722593450799,-500.0,0.00019726,2]
[333881675,1722593450808,-500.0,0.00019726,2]
[333881676,1722593450818,-500.0,0.00019726,2]
[333881677,1722593450827,-500.0,0.00019726,2]
[333881678,1722593450836,-500.0,0.00019726,2]
[333881679,1722593450845,-500.0,0.00019726,2]
[333881680,1722593450854,-500.0,0.00019726,2]
[333881681,1722593450862,-231.05,0.00019726,2]
[333881682,1722593450870,-1773.74198,0.00019726,2]
[333881683,1722593450879,-1773.74198,0.00019726,2]
[333881684,1722593450890,-1773.74198,0.00019726,2]
[333881685,1722593450899,-1773.74198,0.00019726,2]
[333881686,1722593450909,-1773.74198,0.00019726,2]
[333881687,1722593450918,-1773.74198,0.00019726,2]
[333881688,1722593450927,-1773.74198,0.00019726,2]
[333881689,1722593450936,-1773.74198,0.00019726,2]
[333881690,1722593450945,-1773.74198,0.00019726,2]
[333881691,1722593450954,-1773.74198,0.00019726,2]
[333881692,1722593450963,-1773.74198,0.00019726,2]
[333881693,1722593450972,-1773.74198,0.00019726,2]
[333881694,1722593450981,-1773.74198,0.00019726,2]
[333881695,1722593450990,-1773.741978,0.00019726,2]
[333881696,1722593450999,-500.0,0.00019726,2]
[333881697,1722593451008,-819.31616,0.00019726,2]
[333881698,1722593451017,-10926.23373424,0.00019767,2]
[333881699,1722593451026,-4800.0,0.000198,7]
[333881700,1722593451035,-2000.0,0.00019805,2]
[333881701,1722593451044,-400.0,0.00019805,2]
[333881702,1722593451054,-999.04,0.00019805,2]
[333881703,1722593451063,-2031.62,0.00019805,2]
[333881704,1722593451072,-2798.72,0.00019805,2]
[333881705,1722593451081,-1857.75,0.00019805,2]
[333881706,1722593451090,-691.51,0.00019805,2]
[333881707,1722593451099,-625.49,0.00019886,2]
[333881708,1722593451108,-980.35925756,0.0001989,2]
[333881709,1722593451118,-300.0,0.00019899,2]
[333881710,1722593451128,-226.01734404,0.00019899,2]
[333881711,1722593451138,-493.63763247,0.00019899,2]
[333881712,1722593451148,-982.89341026,0.00019899,2]
[333881713,1722593451156,-212.14076222,0.00019899,2]
[333881714,1722593451165,-900.0,0.000199,7]
[333881715,1722593451175,-300.0,0.0001991,4]
[333881716,1722593451185,-10926.23373424,0.00019921,2]
[333881717,1722593451194,-167.69,0.00019936,2]
[333881718,1722593451203,-179.75,0.0001998,2]
[333881719,1722593451212,-500.0,0.0001998,2]
[333881720,1722593451221,-168.73184785,0.00019987,2]
[333881721,1722593451231,-2047.36,0.00019987,2]